Cogmind - Beta 17.1 @@@ ROGUE MODE // 2026.09.05 @ 21:57:54 Player: 4R-ZE3 Result: Destroyed by Executioner with Helical Railgun Performance ------------- Evolutions (7) 3500 Regions Visited (22) 4400 Robots Destroyed (236) 1180 Value Destroyed (12084) 12084 Prototype IDs (45) 900 Alien Tech Used (7) 1400 Bonus (26127) 26127 TOTAL SCORE: 49591 Bonus ------- High Alert Combat Kills 1677 Follower Combat Kills 2510 Registered with UFD 300 Met Optimus in HQ 500 Met Data Miner 300 Met Zhirov 300 Built Enhanced Grunts 300 A7 Reached Mainframe 300 Met R17 at Cetus 500 Used Core Reset Matrix 3000 Met R17 at Research 2000 Destroyed Superfortress 15000 Met Optimus at Protoforge 1000 Friendly Fire -1560 Cogmind --------- Core Integrity 0/1300 Matter 180/300 Energy 191/200 System Corruption 4% Temperature Cool (0) Movement Flying (36) Location -3/Protoforge Parts ------- > --- POWER (2) -------- Micro Antimatter Reactor Micro Antimatter Reactor > --- PROPULSION (8) --- Impulse Thruster Array Impulse Thruster Array (fused) Impulse Thruster Array Impulse Thruster Array > --- UTILITY (8) ------ Experimental Optical Array Experimental Targeting Computer Experimental Targeting Computer Experimental Targeting Computer Advanced Target Analyzer Experimental Core Analyzer Experimental Reaction Control System (fused) Centrium Medium Armor Plating > --- WEAPON (3) ------- Helical Railgun Helical Railgun Helical Railgun > --- INVENTORY (5) ---- Experimental Optical Array Helical Railgun Helical Railgun Fusion Bomb Launcher Peak State ------------ > --- POWER ------------ Light Antimatter Reactor Micro Antimatter Reactor > --- PROPULSION ------- Impulse Thruster Array Impulse Thruster Array Impulse Thruster Array Experimental Surge Thruster Experimental Surge Thruster > --- UTILITY ---------- Medium Storage Unit Advanced Target Analyzer Experimental Core Analyzer Experimental Core Analyzer Experimental Core Analyzer Experimental Reaction Control System Centrium Medium Armor Plating Improved Remote Force Field > --- WEAPON ----------- Helical Railgun Helical Railgun Helical Railgun > --- INVENTORY -------- Neutrino Core Experimental Surge Thruster Concept Antimissile System Transdimensional Reconstructor Helical Railgun Helical Railgun Fusion Bomb Launcher [Rating: 180] Favorites ----------- Power Micro Antimatter Reactor Engine Light Angular Momentum Engine Power Core Neutrino Core Reactor Micro Antimatter Reactor Propulsion Impulse Thruster Array Treads Heavy Treads Leg Advanced Myomer Leg Wheel Wheel Hover Unit Combat Gravmag System Flight Unit Impulse Thruster Array Utility Experimental Targeting Computer Device Advanced Heat Sink Storage Large Storage Unit Processor Experimental Targeting Computer Hackware Improved System Shield Protection Centrium Medium Armor Plating Weapon Helical Railgun Energy Gun Heavy Beamcaster Energy Cannon Heavy Phase Cannon Ballistic Gun Helical Railgun Ballistic Cannon Linear Accelerator Launcher Long-range Missile Launcher Special Weapon Multitool Slashing Weapon Phasing Sabre Piercing Weapon Force Lance Special Melee Weapon Advanced Datajack Build | -11 -10 -10 -9 -6 -6 -6 -6 -6 -6 -5 -5 -5 -5 -5 -4 -4 -4 -4 -4 -3 -3 -3 ------- Run | Yrd Mat Sub Scr Fac Was Fac Low Low Dat Pro Fac Upp Upp Zhi Pro Fac Ext Cet Arc Res Qua Frg Slots Evolved 14 | . . . . 8 . . . . . . 2 . . . . 2 . . . 2 . . Power 1 | . . . . 1 . . . . . . . . . . . . . . . . . . Propulsion 6 | . . . . 2 . . . . . . . . . . . 2 . . . 2 . . Utility 6 | . . . . 4 . . . . . . 2 . . . . . . . . . . . Weapon 1 | . . . . 1 . . . . . . . . . . . . . . . . . . Parts Attached 240 | 6 3 7 4 11 13 10 7 8 . . 2 4 1 6 1 13 29 13 16 12 12 62 Power 29 | 1 . 2 1 1 3 . 2 . . . . 1 1 . 1 . 6 3 . 1 . 6 Engine 7 | 1 . 2 1 1 . . 2 . . . . . . . . . . . . . . . Core 8 | . . . . . . . . . . . . 1 1 . 1 . 4 . . . . 1 Reactor 14 | . . . . . 3 . . . . . . . . . . . 2 3 . 1 . 5 Propulsion 71 | 2 . 2 1 1 4 1 2 . . . . 2 . 4 . 5 7 3 6 6 8 17 Treads 19 | 2 . . . . 4 1 2 . . . . 2 . 1 . . 4 3 . . . . Leg 7 | . . . . 1 . . . . . . . . . 3 . . 3 . . . . . Wheel 4 | . . 2 1 . . . . . . . . . . . . 1 . . . . . . Hover 16 | . . . . . . . . . . . . . . . . 3 . . 6 6 . 1 Flight 25 | . . . . . . . . . . . . . . . . 1 . . . . 8 16 Utility 92 | 1 3 1 1 6 3 4 2 7 . . 2 . . 2 . 6 9 2 8 3 2 30 Device 42 | . 2 1 . 2 3 3 1 5 . . . . . . . 5 5 . 3 2 1 9 Storage 5 | 1 1 . 1 . . . . . . . . . . . . . . . 1 1 . . Processor 25 | . . . . 2 . . 1 . . . 1 . . . . 1 2 . . . . 18 Hackware 5 | . . . . 1 . . . . . . . . . . . . . . 4 . . . Protection 15 | . . . . 1 . 1 . 2 . . 1 . . 2 . . 2 2 . . 1 3 Artifact . | . . . . . . . . . . . . . . . . . . . . . . . Weapon 48 | 2 . 2 1 3 3 5 1 1 . . . 1 . . . 2 7 5 2 2 2 9 Energy Gun 7 | 1 . . 1 1 3 . . . . . . . . . . . . 1 . . . . Energy Cannon 10 | . . . . . . 5 . 1 . . . 1 . . . 1 1 . . 1 . . Ballistic Gun 20 | 1 . 2 . . . . . . . . . . . . . . 4 4 . . . 9 Ballistic Cannon 3 | . . . . . . . . . . . . . . . . 1 1 . . 1 . . Launcher 1 | . . . . . . . 1 . . . . . . . . . . . . . . . Special Weapon 2 | . . . . 2 . . . . . . . . . . . . . . . . . . Impact Weapon . | . . . . . . . . . . . . . . . . . . . . . . . Slashing Weapon 3 | . . . . . . . . . . . . . . . . . 1 . 1 . 1 . Piercing Weapon 1 | . . . . . . . . . . . . . . . . . . . . . 1 . Special Melee Weapon 1 | . . . . . . . . . . . . . . . . . . . 1 . . . Unidentified Prototypes 28 | . . . . . 1 . . 1 . . 1 . . 3 . 1 . 4 2 . 3 12 Corrupted Parts 2 | . . . . . . . . . . . . . . . . . . 2 . . . . System Corruption 14 | . . . . . . . . . . . . . . . . . . 14 . . . . Parts Lost 56 | . . 4 . . . 1 . . . 2 . . 2 . 11 9 . 2 . . 10 15 Power 9 | . . 2 . . . . . . . . . . 1 . 3 . . . . . 1 2 Propulsion 21 | . . 1 . . . . . . . 1 . . . . 2 4 . 1 . . 4 8 Utility 15 | . . . . . . 1 . . . . . . . . 4 3 . . . . 3 4 Weapon 11 | . . 1 . . . . . . . 1 . . 1 . 2 2 . 1 . . 2 1 Highest Loss Streak 10 | . . 2 . . . 1 . . . 2 . . 2 . 7 7 . 2 . . 7 10 To Critical Strikes 1 | . . . . . . . . . . . . . . . . . . 1 . . . . Average Backups 9 | 1 2 8 10 11 12 12 13 13 13 13 13 14 14 14 11 10 4 4 3 4 7 5 Power . | . 1 . 1 1 1 1 1 1 1 1 1 1 . . . . 1 2 1 1 1 . Propulsion 1 | . . 1 1 . 1 1 1 1 1 . . . 1 1 1 1 . . . . 1 . Utility 3 | . . 3 6 6 6 4 5 5 6 6 5 5 5 5 3 2 1 1 1 3 2 1 Weapon 3 | . . 1 1 1 1 4 5 4 4 5 6 7 6 6 4 4 2 . . . 1 2 Tool/Special . | . . . . . . . . . . . . . . . . . . . . . . . Unused Backups 46 | . . 2 13 . 2 4 . . . . . 1 . 2 . 3 3 3 3 1 2 7 Power 8 | . . . 2 . 2 . . . . . . . . 1 . . . 2 1 . . . Propulsion 7 | . . . 4 . . . . . . . . 1 . . . . . . 1 . . 1 Utility 14 | . . 1 6 . . . . . . . . . . . . . 2 . 1 1 1 2 Weapon 15 | . . 1 1 . . 4 . . . . . . . 1 . 3 1 1 . . . 3 Tool/Special 2 | . . . . . . . . . . . . . . . . . . . . . 1 1 Average Slot Usage (%) 83 | . 93 89 100 80 86 85 91 92 75 92 88 88 87 87 53 26 81 84 80 94 78 79 Engine 4 | . 14 4 14 11 2 . 10 13 13 13 11 8 2 . . . . . . . . . Core 1 | . . . . . . . . . . . . 1 7 11 5 . 6 . . . . . Reactor 4 | . . . . . 10 13 2 . . . . . . . . . 1 10 10 9 5 8 Treads 10 | . 28 25 9 . 11 13 18 20 20 19 17 17 17 16 8 . 10 15 8 . . . Wheel 1 | . . 1 18 13 1 . . . . . . . . . . 3 . . . . . . Hover 1 | . . . . . . . . . . . . . . . . 1 3 . 8 32 23 1 Flight 5 | . . . . . . . . . . . . . . . . . 2 . . . 4 19 Device 10 | . 7 14 14 13 13 17 13 12 13 12 11 11 11 10 6 8 18 21 18 12 10 3 Storage 4 | . 14 14 14 6 6 6 6 6 6 6 5 5 5 5 4 3 . . . 1 4 . Processor 16 | . . . . 4 13 13 19 20 20 20 17 17 17 17 9 . 8 15 14 9 9 26 Protection 2 | . . . . 4 . . . . . . 5 5 5 4 2 . 8 5 2 . 3 4 Energy Gun 3 | . 14 14 21 16 20 11 . . . . . . . . . . . . . . . . Energy Cannon 6 | . . . . . . 7 19 19 2 18 16 17 16 16 8 . . . . 3 1 . Ballistic Gun 6 | . 14 14 6 . . . . . . . . . . . . . 12 13 8 . . 13 Peak Build Rating 180 | 6 9 11 16 39 84 85 84 76 75 75 87 88 89 101 93 47 95 145 145 135 140 180 Average Rating 100 | 3 7 8 12 31 73 82 74 73 57 73 85 87 88 90 57 34 80 125 117 127 119 168 On Entrance 66 | . 6 9 11 16 39 82 84 73 74 75 73 87 88 89 91 22 32 94 145 98 131 113 Avg Prop Armor Cover (%) 8 | . . 13 13 4 6 . . . . . . . . . . 12 3 2 . . 2 6 Naked Turns 3 | . . . . . . . . . . . . . . . 3 . . . . . . . Heaviest Build 94 | 12 18 20 32 51 69 94 84 77 81 79 83 88 93 93 92 32 72 81 81 73 73 72 Greatest Support 240 | 40 40 40 20 20 140 140 140 118 118 118 118 118 118 118 117 60 139 240 240 103 107 64 Greatest Overweight (x) 23 | . . 1 3 2 2 . . . . . . . . 3 1 1 1 . 15 . 1 23 Average Overweight (x) . | . . . 1 1 . . . . . . . . . . . . . . . . . . Largest Inventory Capacity 15 | 8 10 10 15 15 15 15 15 15 15 15 15 15 15 15 15 15 5 5 5 10 10 10 Average Capacity 10 | 6 9 10 14 15 15 15 15 15 15 15 15 15 15 15 13 12 5 5 5 6 10 5 Most Carried 15 | 2 8 10 15 15 15 15 15 15 15 15 14 15 15 15 15 15 5 5 5 5 10 10 Average Carried 9 | 1 2 8 10 10 14 14 14 14 15 14 13 14 14 14 11 10 4 4 4 4 7 5 Final Capacity 15 | 8 10 10 15 15 15 15 15 15 15 15 15 15 15 15 15 5 5 5 5 10 10 5 Final Carried 15 | 1 8 10 15 11 15 14 15 15 15 15 14 15 15 15 10 4 5 5 4 5 9 4 Scrap Suit Usage (%) 1 | . . . . . . . . . . . . . . . . . . . . . . 1 Class Distribution -------------------- 34% | Scavenger-Skirmisher 24% | Scavenger-Gunner 14% | Mutant 13% | Scavenger-Tank 3% | Scavenger-Mutant Dominant Class ---------------- Mutant | -10/Materials Mutant | -10/Subcaves Mutant | -9/Scraptown Derelict-Tank | -6/Factory Scavenger-Skirmisher | -6/Waste Scavenger-Tank | -6/Factory Scavenger-Skirmisher | -6/Lower Caves Scavenger-Skirmisher | -6/Lower Caves Scavenger-Mutant | -6/Data Miner Scavenger-Skirmisher | -5/Proximity Caves Scavenger-Skirmisher | -5/Factory Scavenger-Skirmisher | -5/Upper Caves Scavenger-Skirmisher | -5/Upper Caves Scavenger-Skirmisher | -5/Zhirov Mutant | -4/Proximity Caves Mutant | -4/Factory Scavenger-Tank | -4/Extension Commander-Tank | -4/Cetus Scavenger-Tank | -4/Archives Scavenger-Scout | -3/Research Scavenger-Mutant | -3/Quarantine Scavenger-Gunner | -3/Protoforge Resources | -11 -10 -10 -9 -6 -6 -6 -6 -6 -6 -5 -5 -5 -5 -5 -4 -4 -4 -4 -4 -3 -3 -3 ----------- Run | Yrd Mat Sub Scr Fac Was Fac Low Low Dat Pro Fac Upp Upp Zhi Pro Fac Ext Cet Arc Res Qua Frg Matter Collected 9253 | 127 247 105 40 . 300 495 366 696 . 482 . 130 315 130 87 . 1015 338 507 250 143 3480 Remotely . | . . . . . . . . . . . . . . . . . . . . . . . Salvage Created 12886 | . 377 183 . . 570 895 376 875 . 650 . 798 1025 130 21 . 494 283 433 284 496 4996 Parts 575 | . 24 9 . . 8 32 25 33 . 38 . 17 27 12 . . 28 11 29 10 27 245 Haulers Intercepted 3 | . . . . . . . . 1 . . . . . . . . . . . 1 . 1 Recyclers Shooed 1 | . . . . . . . . . . . . . . . . . 1 . . . . . Parts Field Recycled . | . . . . . . . . . . . . . . . . . . . . . . . Retrieved Matter . | . . . . . . . . . . . . . . . . . . . . . . . Parts Self-Destructed 121 | . . 7 . . . . 19 22 . 32 . 10 20 11 . . . . . . . . Prevented 11 | . . . . . . . 2 . . . . 1 8 . . . . . . . . . Parts Restored . | . . . . . . . . . . . . . . . . . . . . . . . Kills | -11 -10 -10 -9 -6 -6 -6 -6 -6 -6 -5 -5 -5 -5 -5 -4 -4 -4 -4 -4 -3 -3 -3 ------- Run | Yrd Mat Sub Scr Fac Was Fac Low Low Dat Pro Fac Upp Upp Zhi Pro Fac Ext Cet Arc Res Qua Frg Combat Hostiles Destroyed 209 | . 12 4 . . 1 18 12 26 . 32 . 2 21 . 2 . 8 2 . 2 6 61 Melee 7 | . . . . . . . . . . . . . . . . . . . . 2 5 . Guns 92 | . 12 4 . . 1 5 . . . . . . . . . . 8 2 . . . 60 Cannons 41 | . . . . . . 10 6 3 . 9 . 2 9 . 2 . . . . . . . AOE 64 | . . . . . . . 6 23 . 23 . . 11 . . . . . . . 1 . Classes Destroyed 25 | . 3 1 . . 1 3 1 2 . . . 1 2 . 1 . 2 . . . . 8 Builder 2 | . 1 . . . . . . . . . . . . . . . 1 . . . . . Hauler 4 | . . . . . . . . 1 . . . . . . . . . . . 1 . 2 Recycler 2 | . . . . . . . . . . . . . . . . . . . . . 2 . Mechanic 1 | . . . . . . . . . . . . . . . . . . . . . . 1 Operator 10 | . . . . . . . . . . . . . . . . . 1 . 9 . . . Drone 4 | . . . . . . . . . . . . . . . 2 . . . . . . 2 Watcher 3 | . . . . . . 1 . . . . . . . . . . . 1 . 1 . . Swarmer 67 | . 6 . . . . 5 5 10 . 23 . 2 5 . . . 4 . . . 4 3 Saboteur 2 | . . . . . . . . . . . . . . . . . . . . . . 2 Grunt 47 | . 6 . . . . 7 . 14 . 8 . . 6 . . . . . . 1 . 5 Brawler 8 | . . . . . . . . . . . . . 4 . . . . . . . . 4 Duelist 6 | . . . . . . . . . . . . . 3 . . . . . . . . 3 Protector 3 | . . . . . . . . . . . . . . . . . . . . . . 3 Sentry 7 | . . . . . . 1 . 2 . 1 . . 2 . . . 1 . . . . . Hunter 10 | . . . . . . . 2 . . . . . . . . . 1 . . 1 . 6 Programmer 13 | . . . . . . 5 1 . . . . . 1 . . . . . . . 2 4 Behemoth 2 | . . . . . . . . . . . . . . . . . 2 . . . . . Compactor 1 | . . . . . 1 . . . . . . . . . . . . . . . . . Cetus Guard 2 | . . . . . . . . . . . . . . . . . . 2 . . . . Enhanced Grunt 1 | . . . . . . . . . . . . . . . . . . . 1 . . . Hotshot 5 | . . . . . . . . . . . . . . . . . . . . . . 5 Decapitator 2 | . . . . . . . . . . . . . . . . . . . . . . 2 Striker 7 | . . . . . . . . . . . . . . . . . . . . . . 7 Executioner 12 | . . . . . . . . . . . . . . . . . . . . . . 12 Subdweller 4 | . . 4 . . . . . . . . . . . . . . . . . . . . Elite 2 | . . . . . . . . . . . . . . . . . . . . . . 2 Scrapoid 4 | . . . . . . . . . . . . . . . . . . . . . . 4 Packrat 3 | . . . . . . . . 2 . . . . 1 . . . . . . . . . Samaritan 1 | . . . . . . . . . . . . 1 . . . . . . . . . . Thug 6 | . . . . . . . 4 1 . . . . 1 . . . . . . . . . Butcher 1 | . . . . . . . . . . . . . . . . . . 1 . . . . Best Kill Streak 9 | . 5 2 . . 1 3 4 7 . 6 . 1 9 . 2 . 3 2 3 2 5 9 Combat Bots Only 9 | . 4 2 . . 1 3 4 7 . 6 . 1 9 . 2 . 3 2 . 1 4 9 Max Kills in Single Turn 5 | . 1 1 . . 1 1 3 3 . 5 . 1 4 . 2 . 2 2 1 1 1 3 Gunslinging 1 | . . . . . . . . . . . . . . . . . . . . . . 1 Exploded 5 | . . . . . . . 3 3 . 5 . . 4 . . . . . . . 1 . Melee 1 | . . . . . . . . . . . . . . . . . . . . 1 1 . Uniques/NPCs Destroyed . | . . . . . . . . . . . . . . . . . . . . . . . Combat | -11 -10 -10 -9 -6 -6 -6 -6 -6 -6 -5 -5 -5 -5 -5 -4 -4 -4 -4 -4 -3 -3 -3 -------- Run | Yrd Mat Sub Scr Fac Was Fac Low Low Dat Pro Fac Upp Upp Zhi Pro Fac Ext Cet Arc Res Qua Frg Hostile Shots Fired 920 | . 57 19 . . . 85 22 43 . 64 . 5 40 . 132 92 78 17 . 4 104 158 Missed 313 | . 19 5 . . . 21 7 17 . 12 . 1 9 . 39 35 23 5 . 1 50 69 Hits 607 | . 38 14 . . . 64 15 26 . 52 . 4 31 . 93 57 55 12 . 3 54 89 Melee 16 | . . . . . . . . . . . . . 2 . 2 . . . . . . 12 Projectile 591 | . 38 14 . . . 64 15 26 . 52 . 4 29 . 91 57 55 12 . 3 54 77 AOE 5 | . . . . . . . . . . . . . . . . 1 . . . . . 4 Critical Strikes 40 | . . . . . . 1 . 2 . . . . 3 . 4 4 4 4 . . 5 13 Damage Taken 14398 | . 418 292 . . . 999 272 438 . 942 . 60 745 . 1995 1264 854 283 . 111 1873 3852 Core 2580 | . 97 65 . . . 30 14 52 . 43 . . 25 . 502 300 114 35 . 39 236 1028 Absorbed by Shields 665 | . . . . . . . . 60 . . . . 79 . 137 . 326 63 . . . . Reduced by Siege Mode 212 | . . . . . . 106 24 9 . 40 . . 29 . 4 . . . . . . . Ignored by Resistances 111 | . . . . . . 44 . . . . . . . . . . 67 . . . . . Regen/Repaired (Parts) 381 | . . . . . . . . . . . . . . . . . . . . . 360 21 Core Remaining (%) 64 | 100 . . 35 . . . . . . 83 . . . . 47 . . . 57 . . . Volleys Fired 624 | . 28 17 . . 19 72 18 34 . 63 6 18 26 13 29 6 45 15 25 15 7 168 Largest 3 | . 2 2 . . 3 3 3 3 . 3 1 3 3 1 3 1 3 3 3 1 1 3 Hottest 286 | . 70 75 . . 243 270 270 270 . 278 90 278 278 98 286 90 91 240 105 54 94 114 Shots Fired 1402 | . 56 34 . . 57 134 37 58 1 89 6 52 56 13 72 6 116 40 71 15 8 481 Gun 908 | . 56 34 . . 57 57 . . . . . . . . . . 112 40 71 . . 481 Cannon 431 | . . . . . . 76 30 36 1 72 6 52 49 4 72 6 4 . . 15 8 . Launcher 53 | . . . . . . . 7 22 . 17 . . 7 . . . . . . . . . Special 10 | . . . . . . 1 . . . . . . . 9 . . . . . . . . Kinetic 767 | . 28 17 . . . . . . . . . . . . . . 112 37 71 15 6 481 Thermal 580 | . 28 17 . . 57 134 30 36 1 72 6 52 49 13 72 6 4 3 . . . . Explosive 53 | . . . . . . . 7 22 . 17 . . 7 . . . . . . . . . Electromagnetic 2 | . . . . . . . . . . . . . . . . . . . . . 2 . Robot Hit Streak 37 | . 9 21 . . 37 15 19 19 . 19 . 10 29 10 14 . 11 9 11 5 . 13 Robot Miss Streak 8 | . 4 1 . . 2 2 1 1 . 2 . 3 2 1 2 . 2 4 4 2 1 8 Penetration Max 2 | . . . . . . . . . . . . . . . . . 1 2 1 . . 2 Secondary Targets 23 | . 3 1 . . . . . . . . . . . . . . 1 1 . . . 17 Max Gunslinging Chain 2 | . 1 1 . . . . . . . . . . . . . . 1 1 . . . 2 Shots Hit Robots 811 | . 38 30 . . 46 72 20 28 . 38 . 21 37 11 17 . 74 28 43 9 11 288 Core Hits 483 | . 19 10 . . 8 25 15 57 . 53 . 12 37 3 4 . 30 15 21 5 6 163 Critical Kills 33 | . . . . . . . . . . . . . 1 . . . 4 4 4 . . 20 Critical Parts Destroyed 29 | . . . . . . . . . . . . . . . . . 2 1 8 . . 18 Critical Strikes 76 | . 1 1 . . 1 7 . . . . . . 1 . . . 6 5 13 . 1 40 Burn 10 | . 1 1 . . 1 7 . . . . . . . . . . . . . . . . Meltdown 1 | . . . . . . . . . . . . . 1 . . . . . . . . . Destroy 64 | . . . . . . . . . . . . . . . . . 6 5 13 . . 40 Sever 1 | . . . . . . . . . . . . . . . . . . . . . 1 . Melee Attacks 41 | . . . . . . . . . . . . . . . . . 2 . 1 7 21 10 Impact . | . . . . . . . . . . . . . . . . . . . . . . . Slashing 36 | . . . . . . . . . . . . . . . . . 2 . . 7 20 7 Piercing 4 | . . . . . . . . . . . . . . . . . . . . . 1 3 Sneak Attacks 6 | . . . . . . . . . . . . . . . . . 1 . 1 1 3 . Combat Hostiles 1 | . . . . . . . . . . . . . . . . . . . . 1 . . Follow-up Attacks . | . . . . . . . . . . . . . . . . . . . . . . . Damage Inflicted 31597 | . 517 338 . . 1022 2150 1368 3401 . 3785 . 982 2787 191 630 6 1457 512 1480 542 875 9554 Guns 15856 | . 517 338 . . 1022 1192 . . . . . . . . . . 1296 512 1480 . . 9499 Cannons 6520 | . . . . . . 958 640 523 . 1135 . 982 1150 133 630 . 61 . . 308 . . Explosions 7893 | . . . . . . . 728 2878 . 2650 . . 1637 . . . . . . . . . Melee 1264 | . . . . . . . . . . . . . . . . . 100 . . 234 875 55 Ramming 6 | . . . . . . . . . . . . . . . . 6 . . . . . . Kinetic 13474 | . 226 153 . . . . . . . . . . . . . . 1296 512 1480 308 . 9499 Thermal 8960 | . 291 185 . . 1022 2150 640 523 . 1135 . 982 1150 191 630 . 61 . . . . . Explosive 7893 | . . . . . . . 728 2878 . 2650 . . 1637 . . . . . . . . . Electromagnetic . | . . . . . . . . . . . . . . . . . . . . . . . Impact . | . . . . . . . . . . . . . . . . . . . . . . . Slashing 1209 | . . . . . . . . . . . . . . . . . 100 . . 234 875 . Piercing 55 | . . . . . . . . . . . . . . . . . . . . . . 55 Highest Corruption 16 | . . . . . . 3 4 4 4 4 . . . . . 4 7 16 16 . 7 4 Average Corruption 4 | . . . . . . 1 3 4 4 4 . . . . . 3 4 10 10 . 6 3 Corruption Purged 19 | . . . . . . . . . . . . . . . . . 5 . 14 . . . Corruption Blocked . | . . . . . . . . . . . . . . . . . . . . . . . Effects 394 | . . . . . . 8 35 39 5 29 . . . . . 6 39 24 27 . 4 178 Message Errors 96 | . . . . . . 2 9 12 . 8 . . . . . 1 6 4 6 . 2 46 Matter Fused 98 | . . . . . . . 8 9 . 4 . . . . . 3 9 6 3 . . 56 Heat Flow Errors 45 | . . . . . . 3 3 4 . 4 . . . . . 2 5 3 4 . 1 16 Energy Discharges 42 | . . . . . . 1 5 4 1 2 . . . . . . 5 5 2 . . 17 Parts Rejected 3 | . . . . . . . 1 . . . . . . . . . 2 . . . . . Parts Fused 3 | . . . . . . . . . . . . . . . . . . . 1 . . 2 Data Loss (minor) 60 | . . . . . . 1 6 6 3 5 . . . . . . 8 4 3 . . 24 Data Loss (major) 19 | . . . . . . . . . . 4 . . . . . . . . 3 . . 12 Misfires 16 | . . . . . . . 3 4 1 2 . . . . . . 3 1 1 . 1 . Alerts 5 | . . . . . . 1 . . . . . . . . . . 1 1 1 . . 1 Weapon Failures 7 | . . . . . . . . . . . . . . . . . . . 3 . . 4 Overload Shots 3 | . . . . . . . . . . . . . . . . . . 3 . . . . Overflow Damage 992 | . . . . . . . 71 204 . 94 . 222 87 . 3 . . . . 60 251 . Projectiles 413 | . . . . . . . 43 42 . 17 . 222 83 . 3 . . . . 3 . . Explosions 271 | . . . . . . . 28 162 . 77 . . 4 . . . . . . . . . Melee 308 | . . . . . . . . . . . . . . . . . . . . 57 251 . Knockbacks 6 | . . . . . . . . . . . . . . . . . . . . 6 . . Impact . | . . . . . . . . . . . . . . . . . . . . . . . Kinetic 4 | . . . . . . . . . . . . . . . . . . . . 4 . . Secondary 2 | . . . . . . . . . . . . . . . . . . . . 2 . . Self-Inflicted Damage 214 | . . . . . . . . 47 . 59 . . 108 . . . . . . . . . Shots 5 | . . . . . . . . 1 . 1 . . 3 . . . . . . . . . Rammed . | . . . . . . . . . . . . . . . . . . . . . . . Targets Rammed 2 | . . . . . . . . . . . . . . . . 2 . . . . . . Kicked 2 | . . . . . . . . . . . . . . . . 2 . . . . . . Crushed . | . . . . . . . . . . . . . . . . . . . . . . . Highest Temperature 387 | . 117 1 . . 387 326 144 288 . 255 . 282 201 . 214 296 180 251 129 . 12 211 Average Temperature 85 | . 41 1 . . 122 95 51 91 . 60 . 108 94 . 84 126 99 107 68 . 12 81 Received Heat Transfer 1913 | . 144 66 . . . 252 18 118 . 45 . . 193 . 260 419 122 . . 36 102 138 Effects 3 | . . . . . 1 1 . . . . . . 1 . . . . . . . . . Energy Bleed 1 | . . . . . . . . . . . . . 1 . . . . . . . . . Interference 1 | . . . . . . 1 . . . . . . . . . . . . . . . . Short Circuit 1 | . . . . . 1 . . . . . . . . . . . . . . . . . Siege Activations 38 | . . . . . 1 12 3 6 . 6 . . 6 1 2 . . . 1 . . . Total Turns 545 | . . . . . 82 128 51 62 . 109 . . 61 31 16 . . . 5 . . . Longest Duration 82 | . . . . . 82 22 25 24 . 38 . . 15 31 11 . . . 5 . . . Martial Activations . | . . . . . . . . . . . . . . . . . . . . . . . Shielding Activations . | . . . . . . . . . . . . . . . . . . . . . . . Robots Disrupted . | . . . . . . . . . . . . . . . . . . . . . . . Combat Hostiles . | . . . . . . . . . . . . . . . . . . . . . . . Robots Corrupted . | . . . . . . . . . . . . . . . . . . . . . . . Combat Hostiles . | . . . . . . . . . . . . . . . . . . . . . . . Parts Fried 4 | . . . . . . . . . . . . . 1 . . . 1 . . . 1 1 Impact Corruptions . | . . . . . . . . . . . . . . . . . . . . . . . Robots Melted 4 | . . . . . . 3 . . . . . . 1 . . . . . . . . . Combat Hostiles 4 | . . . . . . 3 . . . . . . 1 . . . . . . . . . Parts Melted 35 | . 1 1 . . . 13 3 1 . . . . 8 . . . . . . . . 8 Heat Transferred 12964 | . 925 629 . . 1764 3184 629 555 . 1236 . 1229 1403 425 911 . 74 . . . . . Parts Sabotaged . | . . . . . . . . . . . . . . . . . . . . . . . Parts Stolen . | . . . . . . . . . . . . . . . . . . . . . . . Parts Stripped . | . . . . . . . . . . . . . . . . . . . . . . . Power Chain Reactions . | . . . . . . . . . . . . . . . . . . . . . . . Alert | -11 -10 -10 -9 -6 -6 -6 -6 -6 -6 -5 -5 -5 -5 -5 -4 -4 -4 -4 -4 -3 -3 -3 ------- Run | Yrd Mat Sub Scr Fac Was Fac Low Low Dat Pro Fac Upp Upp Zhi Pro Fac Ext Cet Arc Res Qua Frg Maximum Alert Level 4 | . 1 . . . . . . . . . 1 . . . . 1 3 2 1 2 1 4 Low Security (%) 39 | 100 73 . . 100 100 100 . . . . 87 . . . . 60 70 . 15 16 1 11 Level 1 11 | . 26 . . . . . . . . . 12 . . . . 39 5 . 84 14 98 4 Level 2 8 | . . . . . . . . . . . . . . . . . 13 100 . 69 . 2 Level 3 40 | . . . . . . . . . . . . . . . . . 9 . . . . 82 Level 4 . | . . . . . . . . . . . . . . . . . . . . . . . Level 5 . | . . . . . . . . . . . . . . . . . . . . . . . High Security . | . . . . . . . . . . . . . . . . . . . . . . . Max Security . | . . . . . . . . . . . . . . . . . . . . . . . Peak Influence 1132 | . 247 . . 15 . 159 . . . . 232 . . . . 302 799 647 342 628 380 1132 Initial 431 | . . . . . . . . . . . 232 . . . . 302 . 431 184 60 306 182 Average 447 | . 121 . . 3 . 39 . . . . 96 . . . . 157 197 532 267 435 285 743 Influence Increases 8828 | . 382 . . 15 . 630 265 634 . 845 24 45 450 5 40 340 1341 376 334 848 384 1870 Destroy 0b10 Robot/C 4880 | . 240 . . . . 360 200 540 . 640 . 40 420 . . . 640 160 80 320 120 1120 Destroy 0b10 Robot/NC 195 | . 5 . . . . 5 . 5 . . . 5 . 5 10 . 30 10 45 30 10 35 Destroy Leader 542 | . 50 . . . . 82 40 30 . 40 . . 30 . . . 64 . . 56 10 140 Allied During Kill 1236 | . . . . . . . 25 59 . . . . . . . . 543 170 125 311 3 . Successful Hack 119 | . 11 . . . . 82 . . . . 12 . . . . . . . . 14 . . Select Force Hacks 60 | . 60 . . . . . . . . . . . . . . . . . . . . . Disable Machine 285 | . . . . 15 . 15 . . . . . . . . . 15 30 30 60 30 45 45 Destroy Structure 236 | . 1 . . . . 41 . . . . 12 . . . . 10 34 6 24 72 16 20 Advance Influence 300 | . . . . . . . . . . . . . . . . 300 . . . . . . Partial Spotted 45 | . . . . . . . . . . . . . . . . . . . . . . 45 Lose Combat Pursuer 930 | . 15 . . . . 45 . . . 165 . . . . 30 15 . . . 15 180 465 Influence Decreases 7696 | . 175 207 . 15 . 473 393 600 63 476 393 45 392 63 35 345 571 685 635 462 606 1062 Entered New Map 1524 | . . 100 . . . . 59 6 63 . 137 . . 58 . 3 . 339 277 100 240 142 Time Decay 5273 | . 175 77 . 15 . 463 334 574 . 456 256 45 332 5 25 252 382 326 318 262 206 770 Lost Part 450 | . . 30 . . . 10 . . . 20 . . 20 . 10 90 . 20 . . 100 150 Lost Ally 299 | . . . . . . . . 20 . . . . 40 . . . 39 . 40 100 60 . Purge Threat 150 | . . . . . . . . . . . . . . . . . 150 . . . . . Squads Dispatched 34 | . 3 . . . . 7 . . . . 3 . 1 . . 5 2 . . 7 1 5 Investigation 19 | . 2 . . . . 4 . . . . 3 . . . . 2 1 . . 5 . 2 Extermination 7 | . . . . . . 3 . . . . . . . . . 2 . . . . 1 1 Reinforcement 7 | . 1 . . . . . . . . . . . . . . 1 1 . . 2 . 2 Assault 1 | . . . . . . . . . . . . . 1 . . . . . . . . . Garrison . | . . . . . . . . . . . . . . . . . . . . . . . Intercept . | . . . . . . . . . . . . . . . . . . . . . . . Searches Triggered . | . . . . . . . . . . . . . . . . . . . . . . . Construction Impeded 1 | . . . . . . . . . . . . . . . . 1 . . . . . . Haulers Reinforced 1 | . . . . . . . . . . . . . . . . . . . . 1 . . Active Scanning Responses . | . . . . . . . . . . . . . . . . . . . . . . . Cargo Convoy Interrupts . | . . . . . . . . . . . . . . . . . . . . . . . Stealth | -11 -10 -10 -9 -6 -6 -6 -6 -6 -6 -5 -5 -5 -5 -5 -4 -4 -4 -4 -4 -3 -3 -3 --------- Run | Yrd Mat Sub Scr Fac Was Fac Low Low Dat Pro Fac Upp Upp Zhi Pro Fac Ext Cet Arc Res Qua Frg Distress Signals 36 | . 2 . . . . 2 . . . . . . . . . 1 1 2 . 5 1 22 Communications Jammed . | . . . . . . . . . . . . . . . . . . . . . . . Distress Signals . | . . . . . . . . . . . . . . . . . . . . . . . Times Spotted 461 | . 18 4 . . 1 26 13 21 . 37 . 2 18 . 7 13 36 10 12 19 23 201 Peak Tracking Total 14 | . 6 2 . . 1 3 4 7 . 7 . 1 9 . 4 10 6 5 2 8 6 14 Tactical Retreats 35 | . 1 . . . . 1 . . . 7 . . . . 2 1 . . . 1 5 17 Traps | -11 -10 -10 -9 -6 -6 -6 -6 -6 -6 -5 -5 -5 -5 -5 -4 -4 -4 -4 -4 -3 -3 -3 ------- Run | Yrd Mat Sub Scr Fac Was Fac Low Low Dat Pro Fac Upp Upp Zhi Pro Fac Ext Cet Arc Res Qua Frg Traps Triggered 11 | . 1 . . 1 . 5 . . . . . . . . . . 2 . . . 2 . Indirectly . | . . . . . . . . . . . . . . . . . . . . . . . Trap Hack Attempts . | . . . . . . . . . . . . . . . . . . . . . . . Triggered . | . . . . . . . . . . . . . . . . . . . . . . . Disarmed . | . . . . . . . . . . . . . . . . . . . . . . . Reprogrammed . | . . . . . . . . . . . . . . . . . . . . . . . Reused . | . . . . . . . . . . . . . . . . . . . . . . . Traps Extracted . | . . . . . . . . . . . . . . . . . . . . . . . Installed . | . . . . . . . . . . . . . . . . . . . . . . . Triggered . | . . . . . . . . . . . . . . . . . . . . . . . Machines | -11 -10 -10 -9 -6 -6 -6 -6 -6 -6 -5 -5 -5 -5 -5 -4 -4 -4 -4 -4 -3 -3 -3 ---------- Run | Yrd Mat Sub Scr Fac Was Fac Low Low Dat Pro Fac Upp Upp Zhi Pro Fac Ext Cet Arc Res Qua Frg Machines Disabled 28 | . . . . 1 . 1 . 2 . 4 . . 2 . . 1 3 2 4 2 3 3 Max in Single Turn 1 | . . . . 1 . 1 . 1 . 1 . . 1 . . 1 . 1 1 . 1 1 Garrison Access 1 | . . . . . . . . . . . . . . . . . . . . 1 . . Machines Repaired . | . . . . . . . . . . . . . . . . . . . . . . . Machines Dismantled 1 | . . . . 1 . . . . . . . . . . . . . . . . . . Machines Sabotaged . | . . . . . . . . . . . . . . . . . . . . . . . Overloaded Fab Kills . | . . . . . . . . . . . . . . . . . . . . . . . Hacking | -11 -10 -10 -9 -6 -6 -6 -6 -6 -6 -5 -5 -5 -5 -5 -4 -4 -4 -4 -4 -3 -3 -3 --------- Run | Yrd Mat Sub Scr Fac Was Fac Low Low Dat Pro Fac Upp Upp Zhi Pro Fac Ext Cet Arc Res Qua Frg Machines Accessed 64 | . 5 . 4 2 . 13 1 1 4 . 8 . 1 4 . 4 4 1 . 6 2 4 Terminals 24 | . 3 . . 1 . 5 1 1 . . 2 . . . . 2 3 1 . 2 1 2 Fabricators 3 | . . . . . . 2 . . . . 1 . . . . . . . . . . . Repair Stations . | . . . . . . . . . . . . . . . . . . . . . . . Recycling Units 18 | . 2 . . . . 3 . . . . 5 . . . . 2 1 . . 3 . 2 Scanalyzers 4 | . . . . 1 . 2 . . . . . . . . . . . . . . 1 . Garrison Access 2 | . . . . . . 1 . . . . . . . . . . . . . 1 . . Total Hacks 157 | . 11 . 16 2 . 24 1 4 30 . 13 . 1 16 . 9 7 3 . 11 2 7 Successful 104 | . 4 . 16 1 . 11 1 4 30 . 4 . 1 16 . 2 2 . . 8 1 3 Failed 53 | . 7 . . 1 . 13 . . . . 9 . . . . 7 5 3 . 3 1 4 Catastrophic 9 | . . . . 1 . 1 . . . . 2 . . . . 1 1 1 . 2 . . Database Lockouts . | . . . . . . . . . . . . . . . . . . . . . . . Manual 60 | . 11 . . 1 . 10 . . . . 12 . . . . 5 2 1 . 10 1 7 Terminals 52 | . 9 . . 1 . 10 1 4 . . 2 . . . . 4 6 3 . 7 1 4 Fabricators 5 | . . . . . . 4 . . . . 1 . . . . . . . . . . . Repair Stations . | . . . . . . . . . . . . . . . . . . . . . . . Recycling Units 28 | . 2 . . . . 4 . . . . 10 . . . . 5 1 . . 3 . 3 Scanalyzers 6 | . . . . 1 . 4 . . . . . . . . . . . . . . 1 . Garrison Access 3 | . . . . . . 2 . . . . . . . . . . . . . 1 . . Terminal Hacks 76 | . 1 . 16 . . 3 1 4 30 . . . 1 16 . . 1 . . 3 . . Record 30 | . . . 9 . . . 1 4 11 . . . . 5 . . . . . . . . Part Schematic 12 | . . . . . . . . . 9 . . . . 3 . . . . . . . . Robot Schematic 7 | . . . . . . . . . 7 . . . . . . . . . . . . . Robot Analysis 10 | . . . 6 . . . . . . . . . . 4 . . . . . . . . Prototype ID Bank 8 | . . . . . . . . . 3 . . . . 4 . . . . . 1 . . Open Door 1 | . . . . . . . . . . . . . 1 . . . . . . . . . Branch Access Points 2 | . . . . . . 1 . . . . . . . . . . . . . 1 . . Recycling Unit Index 2 | . 1 . . . . 1 . . . . . . . . . . . . . . . . Unreport Threat 1 | . . . . . . . . . . . . . . . . . 1 . . . . . Locate Traps 1 | . . . . . . 1 . . . . . . . . . . . . . . . . Recall Reinforcements 1 | . . . . . . . . . . . . . . . . . . . . 1 . . Proto ID Catalog 1 | . . . 1 . . . . . . . . . . . . . . . . . . . Fabricator Hacks 1 | . . . . . . 1 . . . . . . . . . . . . . . . . Build 1 | . . . . . . 1 . . . . . . . . . . . . . . . . Repair Station Hacks . | . . . . . . . . . . . . . . . . . . . . . . . Recycling Unit Hacks . | . . . . . . . . . . . . . . . . . . . . . . . Scanalyzer 4 | . . . . 1 . 2 . . . . . . . . . . . . . . 1 . Retrieve Study 4 | . . . . 1 . 2 . . . . . . . . . . . . . . 1 . Garrison Access Hacks 1 | . . . . . . . . . . . . . . . . . . . . 1 . . Seal Access 1 | . . . . . . . . . . . . . . . . . . . . 1 . . Unauthorized Hacks 22 | . 3 . . . . 5 . . . . 4 . . . . 2 1 . . 4 . 3 Terminals 6 | . 1 . . . . 2 . . . . 1 . . . . . . . . 1 . 1 Botnet 6 | . 1 . . . . 2 . . . . 1 . . . . . . . . 1 . 1 Fabricators . | . . . . . . . . . . . . . . . . . . . . . . . Repair Stations . | . . . . . . . . . . . . . . . . . . . . . . . Recycling Units 16 | . 2 . . . . 3 . . . . 3 . . . . 2 1 . . 3 . 2 Tunnel 2 | . 2 . . . . . . . . . . . . . . . . . . . . . Fedlink 14 | . . . . . . 3 . . . . 3 . . . . 2 1 . . 3 . 2 Scanalyzers . | . . . . . . . . . . . . . . . . . . . . . . . Garrison Access . | . . . . . . . . . . . . . . . . . . . . . . . Data Cores Recovered . | . . . . . . . . . . . . . . . . . . . . . . . Used . | . . . . . . . . . . . . . . . . . . . . . . . Hacking Detections 27 | . 3 . . 1 . 5 . 1 . . 3 . . . . 3 3 2 . 2 1 3 Full Trace Events 1 | . . . . . . 1 . . . . . . . . . . . . . . . . Feedback Events . | . . . . . . . . . . . . . . . . . . . . . . . Feedback Blocked . | . . . . . . . . . . . . . . . . . . . . . . . Robot Schematics Acquired 7 | . . . . . . . . . 7 . . . . . . . . . . . . . Robots Built . | . . . . . . . . . . . . . . . . . . . . . . . Authchips . | . . . . . . . . . . . . . . . . . . . . . . . Time . | . . . . . . . . . . . . . . . . . . . . . . . Total Robot Build Rating . | . . . . . . . . . . . . . . . . . . . . . . . Part Schematics Acquired 12 | . . . . . . . . . 9 . . . . 3 . . . . . . . . Parts Built 2 | . . . . . . 2 . . . . . . . . . . . . . . . . Authchips . | . . . . . . . . . . . . . . . . . . . . . . . Time 106 | . . . . . . 106 . . . . . . . . . . . . . . . . Total Part Build Rating 12 | . . . . . . 12 . . . . . . . . . . . . . . . . Part Studies Acquired 4 | . . . . 1 . 2 . . . . . . . . . . . . . . 1 . Parts Repaired . | . . . . . . . . . . . . . . . . . . . . . . . Time . | . . . . . . . . . . . . . . . . . . . . . . . Parts Recycled . | . . . . . . . . . . . . . . . . . . . . . . . Recycled Matter . | . . . . . . . . . . . . . . . . . . . . . . . Retrieved Matter . | . . . . . . . . . . . . . . . . . . . . . . . Retrieved Components . | . . . . . . . . . . . . . . . . . . . . . . . Parts Scanalyzed . | . . . . . . . . . . . . . . . . . . . . . . . Part Schematics Acquired . | . . . . . . . . . . . . . . . . . . . . . . . Parts Damaged . | . . . . . . . . . . . . . . . . . . . . . . . Bothacking | -11 -10 -10 -9 -6 -6 -6 -6 -6 -6 -5 -5 -5 -5 -5 -4 -4 -4 -4 -4 -3 -3 -3 ------------ Run | Yrd Mat Sub Scr Fac Was Fac Low Low Dat Pro Fac Upp Upp Zhi Pro Fac Ext Cet Arc Res Qua Frg Used RIF Installer . | . . . . . . . . . . . . . . . . . . . . . . . Robots Hacked 1 | . . . . . . . . . . . . . . . . . . . 1 . . . Non-combat . | . . . . . . . . . . . . . . . . . . . . . . . Combat 1 | . . . . . . . . . . . . . . . . . . . 1 . . . Robot Hacks Applied 1 | . . . . . . . . . . . . . . . . . . . 1 . . . parse_system 1 | . . . . . . . . . . . . . . . . . . . 1 . . . Relay Couplers Released 4 | . . . . . . 4 . . . . . . . . . . . . . . . . Programmers 4 | . . . . . . 4 . . . . . . . . . . . . . . . . Fabnet Peak Effective % . | . . . . . . . . . . . . . . . . . . . . . . . Robots Rewired 19 | . . . . . . . 2 . . . . . 2 . . . 15 . . . . . Allies Hacked . | . . . . . . . . . . . . . . . . . . . . . . . Hacks Repelled . | . . . . . . . . . . . . . . . . . . . . . . . Allies | -11 -10 -10 -9 -6 -6 -6 -6 -6 -6 -5 -5 -5 -5 -5 -4 -4 -4 -4 -4 -3 -3 -3 -------- Run | Yrd Mat Sub Scr Fac Was Fac Low Low Dat Pro Fac Upp Upp Zhi Pro Fac Ext Cet Arc Res Qua Frg Total Allies 32 | . . . . . . . 2 . . . . . 2 . . . 23 5 . . . . Largest Group 23 | . . . . . . . 2 2 . . . . 2 . . . 19 23 16 11 3 . Highest-Rated Group 1338 | . . . . . . . 51 51 . . . . 58 . . . 906 1338 1048 683 123 . Highest-Rated Ally 159 | . . . . . . . 31 31 . . . . 29 . . . 159 153 153 96 41 . Initial UFD Resources 95 | . . . . 22 22 22 38 38 38 41 41 57 57 57 60 60 74 76 76 79 95 95 Total Orders 13 | . . . . . . . 2 5 . . . . . . . . . 6 . . . . STAY 10 | . . . . . . . 1 3 . . . . . . . . . 6 . . . . FOLLOW 3 | . . . . . . . 1 2 . . . . . . . . . . . . . . Ally Attacks 322 | . . . . . . . 8 1 . . . . 13 . . . 156 42 30 68 4 . Total Damage 10131 | . . . . . . . 129 20 . . . . 151 . . . 4108 1139 1046 3474 64 . Kills 63 | . . . . . . . 2 1 . . . . . . . . 29 7 4 20 . . Allies Corrupted 1 | . . . . . . . . . . . . . . . . . . . . . 1 . Allies Melted 3 | . . . . . . . . . . . . . . . . . . . . . . 3 Intel | -11 -10 -10 -9 -6 -6 -6 -6 -6 -6 -5 -5 -5 -5 -5 -4 -4 -4 -4 -4 -3 -3 -3 ------- Run | Yrd Mat Sub Scr Fac Was Fac Low Low Dat Pro Fac Upp Upp Zhi Pro Fac Ext Cet Arc Res Qua Frg Active Infowar (turns) 26254 | . . 598 1791 84 1030 2122 1748 1754 160 1271 650 1447 1038 456 430 125 1621 724 719 568 428 7490 Optics 23373 | . . . . 69 1030 2122 1748 1754 160 1271 650 1447 1038 456 430 . 1269 724 719 568 428 7490 Sensors 14690 | . . . . 6 928 1877 1504 1674 158 1003 650 1398 891 448 335 108 1621 724 716 568 81 . IFF 17 | . . . . . . . . . . . . . . . . 17 . . . . . . Terrain 324 | . . . . . . . . . . . . . . . . . . . . . 281 43 Structural 2452 | . . 598 1791 63 . . . . . . . . . . . . . . . . . . T.N.C. 11 | . . . . . . . . . . . . . . . . . . . . . . 11 Robot Analysis Total 10 | . . . 6 . . . . . . . . . . 4 . . . . . . . . Derelict Logs Recovered 11 | . . 1 5 . . . 2 2 . 1 . . . . . . . . . . . . Drone Launches . | . . . . . . . . . . . . . . . . . . . . . . . Drone Recoveries . | . . . . . . . . . . . . . . . . . . . . . . . Exploration | -11 -10 -10 -9 -6 -6 -6 -6 -6 -6 -5 -5 -5 -5 -5 -4 -4 -4 -4 -4 -3 -3 -3 ------------- Run | Yrd Mat Sub Scr Fac Was Fac Low Low Dat Pro Fac Upp Upp Zhi Pro Fac Ext Cet Arc Res Qua Frg Turns Passed 28465 | 74 383 665 1791 84 1030 2122 1748 1754 160 1271 650 1447 1038 456 799 562 1651 724 719 568 428 8341 Spaces Moved 15350 | 41 173 394 1657 46 590 967 956 956 94 623 385 838 518 226 458 527 833 374 383 954 490 2867 Core 171 | 1 . . . . . . . . . . . . . . 6 152 . . 5 . . 7 Treads 7794 | 40 173 322 . . 475 967 956 956 94 623 385 838 518 224 158 . 525 374 166 . . . Legs 477 | . . . . . . . . . . . . . . 2 294 43 138 . . . . . Wheels 2199 | . . 72 1657 46 115 . . . . . . . . . . 309 . . . . . . Hover 1940 | . . . . . . . . . . . . . . . . 6 . . 212 954 489 279 Flight 2769 | . . . . . . . . . . . . . . . . 17 170 . . . 1 2581 Fastest Speed 6 | 50 160 95 95 95 100 160 160 163 163 163 163 163 163 163 50 40 40 160 40 36 19 6 Average Speed 116 | 157 160 148 105 100 148 160 162 163 163 163 163 163 163 165 136 90 150 160 117 43 64 37 Slowest Speed 1200 | 160 160 160 125 110 160 160 165 163 163 163 163 163 163 330 250 120 240 160 800 50 144 1200 Overloaded Moves 53 | . . . . . . . . . . . . . . . . . . . . . . 53 Propulsion Burnouts . | . . . . . . . . . . . . . . . . . . . . . . . Robots Hopped 6 | . . . . . . . . . . . . . . . . . 2 . . . . 4 Potential Cave-ins 2 | . . . . . . . . . . . . . . . 2 . . . . . . . Cave-ins Triggered . | . . . . . . . . . . . . . . . . . . . . . . . Teleports 2 | . . . . . . . . . . . . . . . . 1 . . . . . 1 Exploration Rate (%) 55 | 4 43 25 86 1 96 24 98 97 72 78 10 65 50 63 62 13 85 81 88 36 69 37 Regions Visited 22 Branch Regions 15 Pre-discovered Areas 10 | . 2 1 1 . . 1 . . 1 1 . . . 3 . . . . . . . . Known Exits Taken 15 | . . . . . . 1 1 1 1 1 1 1 1 1 . 1 1 1 1 1 1 . Unknown Exits Taken 5 | 1 1 1 1 . . . . . . . . . . . 1 . . . . . . . Scrap Searched 23 | . . 3 8 . . . 3 4 . 2 . 1 2 . . . . . . . . . Spaces Dug 148 | . . . . . . 28 4 10 . 28 5 6 7 . 36 4 1 . . 7 5 7 Terrain Destroyed 787 | . . . . . . 48 124 203 . 147 6 23 108 . 53 5 6 . 14 10 7 33 Melee 13 | . . . . . . . . . . . . . . . . . . . . 3 3 7 Projectile 266 | . . . . . . 48 11 17 . 33 6 23 13 . 53 5 6 . 14 7 4 26 AOE 508 | . . . . . . . 113 186 . 114 . . 95 . . . . . . . . . Terrain Rammed . | . . . . . . . . . . . . . . . . . . . . . . . Walls Destroyed . | . . . . . . . . . . . . . . . . . . . . . . . Machines Disabled . | . . . . . . . . . . . . . . . . . . . . . . . Actions | -11 -10 -10 -9 -6 -6 -6 -6 -6 -6 -5 -5 -5 -5 -5 -4 -4 -4 -4 -4 -3 -3 -3 --------- Run | Yrd Mat Sub Scr Fac Was Fac Low Low Dat Pro Fac Upp Upp Zhi Pro Fac Ext Cet Arc Res Qua Frg Total 24687 | 48 222 443 1702 70 706 1412 1115 1089 100 785 398 880 655 296 572 598 1149 476 594 1086 556 9735 Wait 7764 | . 12 11 . 1 58 301 93 62 . 80 1 6 83 15 69 39 102 50 151 82 6 6542 Move 15318 | 40 172 393 1656 46 589 966 955 955 93 622 384 837 517 225 457 526 829 373 382 953 489 2859 Hop 5 | . . . . . . . . . . . . . . . . . 1 . . . . 4 Pick Up 125 | 2 6 8 23 3 7 9 1 2 . 3 1 3 2 8 6 6 7 4 2 4 10 8 Fast Attach 195 | 5 2 1 2 . 5 5 5 3 3 . . 2 2 11 6 12 26 10 17 8 8 62 Attach 54 | 1 . 4 1 7 1 3 1 1 . 2 1 1 2 1 1 3 2 1 . . 6 15 Detach 25 | . . . 1 . . 1 . 2 . . . . . . . 1 4 . 1 . 2 13 Swap 165 | . 1 4 1 7 9 39 12 25 1 15 3 5 17 4 3 . 3 4 . 4 3 5 Drop 216 | . 1 5 18 . 18 12 5 5 3 . . 6 2 18 1 3 18 19 15 13 5 49 Fire 624 | . 28 17 . . 19 72 18 34 . 63 6 18 26 13 29 6 45 15 25 15 7 168 Melee 40 | . . . . . . . . . . . . . . . . . 2 . 1 7 20 10 Ram . | . . . . . . . . . . . . . . . . . . . . . . . Kick 2 | . . . . . . . . . . . . . . . . 2 . . . . . . Crush . | . . . . . . . . . . . . . . . . . . . . . . . Escape Stasis 2 | . . . . . . . . . . . . . . . . . 2 . . . . . Rewire 140 | . . . . . . . 25 . . . . 2 4 1 . . 108 . . . . . Trap . | . . . . . . . . . . . . . . . . . . . . . . . Miscellaneous 12 | . . . . 6 . 4 . . . . 2 . . . . . . . . . . . Route ------- -11/Scrapyard -10/Materials (discovered 2 exits: [*Min] / [*Sub]) -10/Subcaves -9/Scraptown (discovered 2 exits: *Fac x2) -6/Factory -6/Waste -6/Factory (discovered 3 exits: *Fac / *Low x2) -6/Lower Caves -6/Lower Caves (discovered 2 exits: *Fac / *Dat) -6/Data Miner -5/Proximity Caves -5/Factory (discovered 3 exits: *Fac / *Upp x2) -5/Upper Caves -5/Upper Caves -5/Zhirov -4/Proximity Caves -4/Factory (discovered 2 exits: *Upp / *Ext) -4/Extension (discovered 2 exits: *Res / *Cet) -4/Cetus (discovered 2 exits: *Res / *Arc) -4/Archives (discovered 3 exits: *Res / [*Hub x2]) -3/Research (discovered 3 exits: Arm / *Qua x2) -3/Quarantine (discovered 3 exits: [*Res] / [*Sec] / *Frg) -3/Protoforge History --------- Turn | Location | Event 10 | -11/Scrapyard | Discovered new exit (range 14) 75 | -11/Scrapyard | Entered Materials 214 | -10/Materials | Discovered new exit (range 6) 313 | -10/Materials | Build established: Mutant 448 | -10/Materials | Discovered new exit (range 7) 458 | -10/Materials | Entered Subcaves 459 | -10/Subcaves | Approached by a straggling Scientist 468 | -10/Subcaves | Learned location of Zion (-7) 520 | -10/Subcaves | Core integrity fell below 50% 697 | -10/Subcaves | Shifting Twisted Machinery released Piercing Trap 706 | -10/Subcaves | Shifting Twisted Machinery released Mak. Hammer 883 | -10/Subcaves | Scientist uncovered a shortcut to Scraptown 1123 | -10/Subcaves | Entered Scraptown 1278 | -9/Scraptown | Discovered new exit (range 11) 1342 | -9/Scraptown | Scanned Subdweller tech in exchange for log data 1344 | -9/Scraptown | Learned location of Extension (-4) 1345 | -9/Scraptown | Learned Factory terminal intel 1346 | -9/Scraptown | Learned Research trap positions 1347 | -9/Scraptown | Learned location of 1 exit from Proximity Caves 1348 | -9/Scraptown | Learned Research interactive machine intel 1352 | -9/Scraptown | Heard Great Nut preacher, LISTEN AND RECITE! 1374 | -9/Scraptown | Visited Symbiants 1398 | -9/Scraptown | Visited Cave Peace 1440 | -9/Scraptown | Visited UFD Registry 1440 | -9/Scraptown | Registered with UFD as "Lasercoil" 1458 | -9/Scraptown | Visited Awakened 1477 | -9/Scraptown | Visited Comm Corps 1571 | -9/Scraptown | Received an X-ray algorithm 1588 | -9/Scraptown | Visited Research Penetration Think Tank 1612 | -9/Scraptown | Visited DA-N13 Charitable Foundation 1634 | -9/Scraptown | Visited Chapter 10 1665 | -9/Scraptown | Delivered Scrap Shield to a Scientist 1716 | -9/Scraptown | Visited Supply Room 1732 | -9/Scraptown | Visited Scrap Suit Storage 1748 | -9/Scraptown | Visited Junk Repository 1769 | -9/Scraptown | Visited Analyses Database 1806 | -9/Scraptown | Visited Science Guys 2283 | -9/Scraptown | Visited Assassins FH 2573 | -9/Scraptown | Guru changed UFD alias to "Nutbrain" 2679 | -9/Scraptown | Found DCF Scrap (27 items) 2856 | -9/Scraptown | Met Optimus 2856 | -9/Scraptown | Accepted into 0bPrime 2910 | -9/Scraptown | Discovered new exit (range 5) 2914 | -9/Scraptown | Entered Factory 2914 | -6/Factory | Evolved 8 slots: Power x1, Propulsion x2, Utility x4, Weapon x1 2915 | -6/Factory | Loaded intel: 26 terminal locations 2998 | -6/Factory | Sucked down chute 2998 | -6/Factory | Entered Waste 2998 | -6/Waste | The area was eerily silent 3188 | -6/Waste | Discovered new exit (range 14) 3412 | -6/Waste | Build established: Scavenger-Skirmisher 3858 | -6/Waste | A Compactor rumbled back to life 3868 | -6/Waste | Destroyed C-40 Crusher 4026 | -6/Waste | Identified exit to Factory 4028 | -6/Waste | Entered Factory 4075 | -6/Factory | Identified exit to Lower Caves 4287 | -6/Factory | Fabricated Adv. Plasma Cannon (x2) 4960 | -6/Factory | Loaded intel: 8 recycling unit locations 5031 | -6/Factory | Build established: Scavenger-Tank 5917 | -6/Factory | Discovered new exit (range 20) 5943 | -6/Factory | Learned location of Protoforge (-3) 6055 | -6/Factory | Found Powered Armor 6150 | -6/Factory | Entered Lower Caves 6152 | -6/Lower Caves | UFD Scientist delivered a prototype 6157 | -6/Lower Caves | Found Prototype Protection 6442 | -6/Lower Caves | Build established: Scavenger-Skirmisher 6797 | -6/Lower Caves | Learned 12 Factory zone layouts 6971 | -6/Lower Caves | Discovered new exit (range 3) 6974 | -6/Lower Caves | Identified exit to Lower Caves 7238 | -6/Lower Caves | Ambushed by wild Derelicts 7515 | -6/Lower Caves | Learned Factory interactive machine intel 7898 | -6/Lower Caves | Entered another Lower Caves area 7898 | -6/Lower Caves | Accompanied by 2 allies 7913 | -6/Lower Caves | Learned Factory emergency access door positions 8071 | -6/Lower Caves | Discovered new exit (range 13) 8097 | -6/Lower Caves | Identified exit to Factory 8673 | -6/Lower Caves | Attracted the attention of an 0b10 checkpoint 8726 | -6/Lower Caves | Learned Factory terminal intel 8997 | -6/Lower Caves | Found Imp. Powered Armor 9070 | -6/Lower Caves | Attracted the attention of an 0b10 base 9108 | -6/Lower Caves | Destroyed 7 combat bots 9159 | -6/Lower Caves | Learned Factory terminal intel 9159 | -6/Lower Caves | Learned Factory trap positions 9159 | -6/Lower Caves | Learned 6 Proximity Caves zone layouts 9351 | -6/Lower Caves | Discovered new exit (range 18) 9650 | -6/Lower Caves | Identified exit to Data Miner 9652 | -6/Lower Caves | Entered Data Miner 9654 | -6/Data Miner | Discovered new exit (range 6) 9678 | -6/Data Miner | Met Data Miner 9716 | -6/Data Miner | Learned location of Section 7 (-3) 9716 | -6/Data Miner | Acquired the access code to Warlord's prototype stash 9747 | -6/Data Miner | Received God Mode back door access code from Data Miner 9808 | -6/Data Miner | Identified exit to Proximity Caves 9812 | -6/Data Miner | Entered Proximity Caves 10239 | -5/Proximity Caves | Attracted the attention of an 0b10 base 10515 | -5/Proximity Caves | Learned location of Warlord (-4) 11083 | -5/Proximity Caves | Entered Factory 11083 | -5/Factory | Evolved 2 slots: Utility x2 11083 | -5/Factory | Identified Enh. Scrap Shield 11084 | -5/Factory | Identified exit to Upper Caves 11086 | -5/Factory | Loaded intel: 89 trap records 11088 | -5/Factory | Loaded intel: 54 interactive machine locations 11089 | -5/Factory | Loaded intel: 26 terminal locations 11313 | -5/Factory | Discovered new exit (range 6) 11483 | -5/Factory | Loaded intel: 8 recycling unit locations 11733 | -5/Factory | Entered Upper Caves 12378 | -5/Upper Caves | Found DCF Scrap (13 items) 12724 | -5/Upper Caves | Discovered new exit (range 9) 12735 | -5/Upper Caves | Identified exit to Upper Caves 13180 | -5/Upper Caves | Entered another Upper Caves area 13546 | -5/Upper Caves | Attracted the attention of an 0b10 checkpoint 13763 | -5/Upper Caves | Attracted the attention of an 0b10 outpost 13802 | -5/Upper Caves | Destroyed 9 combat bots 13848 | -5/Upper Caves | Discovered new exit (range 11) 13863 | -5/Upper Caves | Identified exit to Zhirov 13866 | -5/Upper Caves | Encountered a Warlord checkpoint 13925 | -5/Upper Caves | Lost 3 allies 14218 | -5/Upper Caves | Entered Zhirov 14218 | -5/Zhirov | Discovered new exit (range 3) 14249 | -5/Zhirov | Met Zhirov 14285 | -5/Zhirov | Learned location of Testing (-2) 14285 | -5/Zhirov | Learned location of Command (-1) 14285 | -5/Zhirov | Learned location of Quarantine (-3) 14315 | -5/Zhirov | Zhirov requested help retrieving the SGEMP Prototype 14341 | -5/Zhirov | Found Alien Artifact 14341 | -5/Zhirov | Identified Integrated Dissipator 14341 | -5/Zhirov | Installed Integrated Dissipator, increased core heat dissipation (+20) 14384 | -5/Zhirov | Found Alien Artifact 14500 | -5/Zhirov | Found Hvy. Reflective Plating 14670 | -5/Zhirov | Identified exit to Proximity Caves 14674 | -5/Zhirov | Entered Proximity Caves 14676 | -4/Proximity Caves | Spotter reported a threat 14677 | -4/Proximity Caves | Spotter reported a threat 14744 | -4/Proximity Caves | Spotted B-86 Titan 15076 | -4/Proximity Caves | Lost 3 parts (1p1n1u) 15104 | -4/Proximity Caves | Released all parts (6) 15130 | -4/Proximity Caves | Lost 7 parts (1p1n3u2w) 15382 | -4/Proximity Caves | Build established: Mutant 15436 | -4/Proximity Caves | Core integrity fell below 50% 15463 | -4/Proximity Caves | Discovered new exit (range 10) 15473 | -4/Proximity Caves | Entered Factory 15473 | -4/Factory | Evolved 2 slots: Propulsion x2 15474 | -4/Factory | Loaded intel: 27 terminal locations 15589 | -4/Factory | Spotted B-86 Titan 15629 | -4/Factory | Loaded intel: 8 recycling unit locations 15801 | -4/Factory | Spotted B-86 Titan 15918 | -4/Factory | Identified Transdimensional Reconstructor 15918 | -4/Factory | Warped through subspace 15948 | -4/Factory | Lost 7 parts (2n3u2w) 15958 | -4/Factory | Discovered new exit (range 11) 15962 | -4/Factory | Identified exit to Upper Caves 16031 | -4/Factory | Discovered new exit (range 11) 16034 | -4/Factory | Identified exit to Extension 16035 | -4/Factory | Entered Extension 16048 | -4/Extension | Rescued a captive Derelict 16051 | -4/Extension | Rescued a captive Derelict 16154 | -4/Extension | Rescued A7 16678 | -4/Extension | Build established: Scavenger-Tank 16981 | -4/Extension | Spotted B-86 Titan 17008 | -4/Extension | Destroyed B-86 Titan 17010 | -4/Extension | Spotted B-86 Titan 17028 | -4/Extension | Destroyed B-86 Titan 17110 | -4/Extension | Rescued a captive Derelict 17327 | -4/Extension | Loaded intel: 1 recycling unit location 17472 | -4/Extension | Rescued a captive Derelict 17473 | -4/Extension | Rescued a captive Derelict 17488 | -4/Extension | Rescued a captive Derelict 17489 | -4/Extension | Rescued a captive Derelict 17622 | -4/Extension | Discovered new exit (range 10) 17624 | -4/Extension | Discovered new exit (range 6) 17653 | -4/Extension | Identified exit to Research 17662 | -4/Extension | Identified exit to Cetus 17686 | -4/Extension | Entered Cetus 17686 | -4/Cetus | Accompanied by 19 allies (A7) 17691 | -4/Cetus | Acquired a Cetus Manufacturing Module code from A7 17707 | -4/Cetus | Spotted Cetus Guard 17707 | -4/Cetus | Spotted Cetus Guard 17714 | -4/Cetus | Spotted Cetus Guard 17715 | -4/Cetus | Spotted Cetus Guard 17716 | -4/Cetus | Allies destroyed Cetus Guard 17726 | -4/Cetus | Allies destroyed Cetus Guard 17728 | -4/Cetus | Allies destroyed Cetus Guard 17736 | -4/Cetus | Allies destroyed Cetus Guard 17808 | -4/Cetus | Discovered new exit (range 21) 17891 | -4/Cetus | Spotted Cetus Guard 17892 | -4/Cetus | Spotted Cetus Guard 17893 | -4/Cetus | Spotted Cetus Guard 17899 | -4/Cetus | Spotted Cetus Guard 17907 | -4/Cetus | Allies destroyed Cetus Guard 17908 | -4/Cetus | Destroyed Cetus Guard 17908 | -4/Cetus | Destroyed Cetus Guard 17912 | -4/Cetus | Discovered exit to Research (range 22) 17915 | -4/Cetus | Allies destroyed Cetus Guard 17930 | -4/Cetus | Met Revision 17 17975 | -4/Cetus | System corruption reached 10% 18018 | -4/Cetus | Build established: Commander-Tank 18054 | -4/Cetus | Started Cetus Manufacturing Module 18079 | -4/Cetus | Manufactured an Enhanced Grunt 18104 | -4/Cetus | Manufactured an Enhanced Grunt 18129 | -4/Cetus | Manufactured an Enhanced Grunt 18154 | -4/Cetus | Manufactured an Enhanced Grunt 18179 | -4/Cetus | Manufactured an Enhanced Grunt 18280 | -4/Cetus | Escorted A7 to Cetus Mainframe 18369 | -4/Cetus | Identified exit to Archives 18410 | -4/Cetus | Entered Archives 18410 | -4/Archives | Accompanied by 16 allies (A7) 18415 | -4/Archives | Received a hacking code to weaken MAIN.C 18452 | -4/Archives | Discovered new exit (range 22) 18465 | -4/Archives | Discovered new exit (range 22) 18614 | -4/Archives | Discovered exit to Research (range 18) 18726 | -4/Archives | Build established: Scavenger-Tank 18971 | -4/Archives | Found Prototype Device 18971 | -4/Archives | Identified Exp. Thermal Shield 19129 | -4/Archives | Entered Research 19129 | -3/Research | Accompanied by 11 allies 19129 | -3/Research | Evolved 2 slots: Propulsion x2 19130 | -3/Research | Loaded intel: 100 trap records 19131 | -3/Research | Loaded intel: 47 interactive machine locations 19150 | -3/Research | Identified exit to Armory 19150 | -3/Research | Identified exit to Quarantine 19266 | -3/Research | Build established: Scavenger-Scout 19320 | -3/Research | Found Fusion Bomb Launcher 19329 | -3/Research | Revision forces began assault on 0b10 19364 | -3/Research | Loaded intel: 5 recycling unit locations 19491 | -3/Research | Lost 3 allies 19601 | -3/Research | Met up with Revision 17++ 19697 | -3/Research | Entered Quarantine 19697 | -3/Quarantine | Accompanied by 3 allies 19806 | -3/Quarantine | Found Transdimensional Reconstructor 19811 | -3/Quarantine | Found Alien Artifact 19813 | -3/Quarantine | Found Alien Artifact 19813 | -3/Quarantine | Identified Dimensional Node Initializer (x2) 19813 | -3/Quarantine | Initialized slip node 19814 | -3/Quarantine | Lost 3 allies 19820 | -3/Quarantine | Found Transdimensional Reconstructor 19846 | -3/Quarantine | Lost 7 parts (2n3u2w) 19889 | -3/Quarantine | Found Alien Slashing Weapon 19889 | -3/Quarantine | Identified Sigix Broadsword 19907 | -3/Quarantine | Discovered new exit (range 22) 19924 | -3/Quarantine | Found Alien Artifact 19924 | -3/Quarantine | Identified Core Reset Matrix 19924 | -3/Quarantine | Used Core Reset Matrix 19927 | -3/Quarantine | Discovered new exit (range 10) 19928 | -3/Quarantine | Detected hypermatrix surge 19928 | -3/Quarantine | Sensed 6 artifacts in vicinity 19942 | -3/Quarantine | Found Subatomic Replicator 19944 | -3/Quarantine | Used Subatomic Replicator to create Supercharged TR 20017 | -3/Quarantine | Spotted Alpha 7 20034 | -3/Quarantine | Spotted Fortress 20109 | -3/Quarantine | Discovered new exit (range 6) 20109 | -3/Quarantine | Discovered new exit (range 7) 20115 | -3/Quarantine | Identified exit to Protoforge 20125 | -3/Quarantine | Entered Protoforge 20126 | -3/Protoforge | Sensed 2 artifacts in vicinity 20135 | -3/Protoforge | Spotted Hotshot 20157 | -3/Protoforge | Superfortress began startup sequence 20164 | -3/Protoforge | Spotted Hotshot 20177 | -3/Protoforge | Spotted Hotshot 20177 | -3/Protoforge | Spotted Hotshot 20191 | -3/Protoforge | Spotted AP7-3 20191 | -3/Protoforge | Spotted AP7-3 20195 | -3/Protoforge | Spotted Overlord 20198 | -3/Protoforge | Spotted EXE-6 20198 | -3/Protoforge | Spotted EXE-6 20202 | -3/Protoforge | Spotted Decapitator 20202 | -3/Protoforge | Spotted Decapitator 20222 | -3/Protoforge | UFD initiated attack on Protoforge (Readiness: Adequate) 20222 | -3/Protoforge | Loaded intel: 3 recycling unit locations 20229 | -3/Protoforge | Core integrity fell below 50% 20258 | -3/Protoforge | Optimus greeted in Protoforge 20264 | -3/Protoforge | Lost 10 parts (1p6n2u1w) 20276 | -3/Protoforge | Initialized slip node 20281 | -3/Protoforge | Found Prototype Processor 20281 | -3/Protoforge | Identified Exp. Core Analyzer 20317 | -3/Protoforge | Lost 16 allies 20353 | -3/Protoforge | Met 7R-MNS 20424 | -3/Protoforge | Spotted Hotshot 20424 | -3/Protoforge | Spotted Hotshot 20424 | -3/Protoforge | Spotted Hotshot 20424 | -3/Protoforge | Spotted Hotshot 20424 | -3/Protoforge | Warped through subspace to slip node 20426 | -3/Protoforge | Spotted Striker 20446 | -3/Protoforge | Optimus attacked Superfortress 20446 | -3/Protoforge | Spotted Decapitator 20469 | -3/Protoforge | Spotted Immortal 20473 | -3/Protoforge | Build established: Scavenger-Mutant 20514 | -3/Protoforge | Lost 32 allies 20522 | -3/Protoforge | Spotted Executioner 20524 | -3/Protoforge | Spotted Immortal 20524 | -3/Protoforge | Spotted Immortal 20538 | -3/Protoforge | Found Prototype Device 20538 | -3/Protoforge | Identified Cep. Antimissile System 20553 | -3/Protoforge | Lost 3 allies 20573 | -3/Protoforge | Found Exp. Core Analyzer 20650 | -3/Protoforge | Lost 4 allies 20743 | -3/Protoforge | Found Exp. Core Analyzer 20745 | -3/Protoforge | Found Exp. Core Analyzer 20767 | -3/Protoforge | Spotted Executioner 20790 | -3/Protoforge | Spotted Striker 20798 | -3/Protoforge | Spotted Executioner 20811 | -3/Protoforge | Spotted Striker 20818 | -3/Protoforge | Core integrity fell below 20% 20819 | -3/Protoforge | P-80 Master assimilated allied 03F44-D 20827 | -3/Protoforge | P-80 Master assimilated allied 03F49-D 20829 | -3/Protoforge | P-80 Master assimilated allied 03F47-D 20833 | -3/Protoforge | P-80 Master assimilated allied Lugger 067 20836 | -3/Protoforge | Spotted Executioner 20872 | -3/Protoforge | Lost 3 parts (1n2u) 20885 | -3/Protoforge | Spotted Executioner 20885 | -3/Protoforge | Spotted Executioner 20891 | -3/Protoforge | Destroyed Executioner 20900 | -3/Protoforge | Destroyed Executioner 20908 | -3/Protoforge | Spotted Executioner 20923 | -3/Protoforge | Spotted Executioner 20925 | -3/Protoforge | Spotted Striker 20926 | -3/Protoforge | Spotted Striker 20951 | -3/Protoforge | Found Unknown Device 20951 | -3/Protoforge | Identified Scrap Suit 20965 | -3/Protoforge | Lost 25 allies 20970 | -3/Protoforge | Spotted Hotshot 20992 | -3/Protoforge | Spotted Decapitator 21028 | -3/Protoforge | Build established: Scavenger-Sprinter 21072 | -3/Protoforge | Spotted Hotshot 21075 | -3/Protoforge | Spotted Hotshot 21077 | -3/Protoforge | Destroyed Hotshot 21107 | -3/Protoforge | Spotted Executioner 21115 | -3/Protoforge | Found Exp. Core Analyzer 21117 | -3/Protoforge | Found Prototype Processor 21117 | -3/Protoforge | Identified Exp. Targeting Computer 21122 | -3/Protoforge | Spotted Executioner 21122 | -3/Protoforge | Spotted Striker 21133 | -3/Protoforge | Spotted Striker 21136 | -3/Protoforge | Spotted Striker 21144 | -3/Protoforge | Destroyed Striker 21175 | -3/Protoforge | Lost 20 allies 21206 | -3/Protoforge | Spotted Executioner 21207 | -3/Protoforge | Spotted Striker 21213 | -3/Protoforge | P-80 Master assimilated allied Lugger 918 21228 | -3/Protoforge | P-80 Master assimilated allied 03F76-D 21287 | -3/Protoforge | Lost 14 allies 21300 | -3/Protoforge | Found Exp. Targeting Computer 21304 | -3/Protoforge | Spotted Decapitator 21326 | -3/Protoforge | Spotted Decapitator 21339 | -3/Protoforge | Spotted Decapitator 21343 | -3/Protoforge | Destroyed Decapitator 21343 | -3/Protoforge | Destroyed Decapitator 21348 | -3/Protoforge | Spotted Striker 21360 | -3/Protoforge | Spotted Executioner 21362 | -3/Protoforge | Spotted Executioner 21363 | -3/Protoforge | Destroyed Striker 21377 | -3/Protoforge | Spotted Striker 21382 | -3/Protoforge | UFD reported confirmed Drillbomb installation 21401 | -3/Protoforge | Spotted Executioner 21404 | -3/Protoforge | Spotted Executioner 21405 | -3/Protoforge | Destroyed Executioner 21405 | -3/Protoforge | Destroyed Executioner 21418 | -3/Protoforge | Found Exp. Targeting Computer 21422 | -3/Protoforge | Found Prototype Processor 21422 | -3/Protoforge | Identified Exp. Melee Analysis Suite 21433 | -3/Protoforge | Lost 16 allies 21465 | -3/Protoforge | Spotted Executioner 21476 | -3/Protoforge | Spotted Striker 21481 | -3/Protoforge | Destroyed Striker 21517 | -3/Protoforge | Spotted Striker 21518 | -3/Protoforge | Destroyed Striker 21540 | -3/Protoforge | Lost 7 allies 21566 | -3/Protoforge | Spotted Hotshot 21605 | -3/Protoforge | Lost 10 allies 21608 | -3/Protoforge | Spotted Hotshot 21611 | -3/Protoforge | Spotted Hotshot 21611 | -3/Protoforge | Destroyed Hotshot 21611 | -3/Protoforge | Destroyed Hotshot 21630 | -3/Protoforge | Spotted Striker 21636 | -3/Protoforge | Destroyed 9 combat bots 21640 | -3/Protoforge | Spotted Striker 21672 | -3/Protoforge | Spotted Executioner 21679 | -3/Protoforge | Spotted Executioner 21688 | -3/Protoforge | Destroyed Executioner 21717 | -3/Protoforge | Lost 6 allies 21720 | -3/Protoforge | Build established: Scavenger-Gunner 21749 | -3/Protoforge | Spotted Executioner 21755 | -3/Protoforge | Spotted Striker 21756 | -3/Protoforge | Destroyed Executioner 21817 | -3/Protoforge | Spotted Striker 21846 | -3/Protoforge | Lost 14 allies 22513 | -3/Protoforge | UFD reported confirmed Drillbomb installation 22771 | -3/Protoforge | UFD reported confirmed Drillbomb installation 22819 | -3/Protoforge | UFD reported confirmed Drillbomb installation 22877 | -3/Protoforge | UFD reported confirmed Drillbomb installation 22937 | -3/Protoforge | UFD reported confirmed Drillbomb installation 24544 | -3/Protoforge | Spotted Executioner 24544 | -3/Protoforge | Destroyed Executioner 25891 | -3/Protoforge | Spotted Striker 25894 | -3/Protoforge | Destroyed Striker 26400 | -3/Protoforge | Spotted Executioner 26401 | -3/Protoforge | P-80 Master assimilated allied 03FMN-D 28267 | -3/Protoforge | Spotted Executioner 28267 | -3/Protoforge | Spotted Executioner 28267 | -3/Protoforge | Spotted Executioner 28267 | -3/Protoforge | Destroyed Executioner 28270 | -3/Protoforge | Destroyed Executioner 28274 | -3/Protoforge | Spotted Executioner 28275 | -3/Protoforge | Destroyed Executioner 28294 | -3/Protoforge | Spotted Executioner 28296 | -3/Protoforge | Spotted Executioner 28298 | -3/Protoforge | Destroyed Executioner 28319 | -3/Protoforge | Lost 3 allies 28334 | -3/Protoforge | Spotted Hotshot 28334 | -3/Protoforge | Destroyed Hotshot 28338 | -3/Protoforge | Spotted Hotshot 28338 | -3/Protoforge | Spotted Hotshot 28340 | -3/Protoforge | Destroyed Hotshot 28340 | -3/Protoforge | Spotted Hotshot 28392 | -3/Protoforge | Lost 7 allies 28412 | -3/Protoforge | Spotted Executioner 28412 | -3/Protoforge | Spotted Striker 28412 | -3/Protoforge | Destroyed Striker 28419 | -3/Protoforge | Destroyed Executioner 28456 | -3/Protoforge | Spotted Striker 28459 | -3/Protoforge | Destroyed Striker 28459 | -3/Protoforge | Spotted Executioner 28466 | -3/Protoforge | Destroyed by Executioner with Helical Railgun Last Messages --------------- 28462_ Slug penetrates Executioner. 28462_ Executioner suffers critical hit (Destroy). 28462_ Destroyed Prototype Leg. 28462_ Executioner suffers critical hit (Destroy). 28462_ Destroyed Helical Railgun. 28463_ N-04 Retriever collects Unknown Device. 28463_ 0L-KGE(E) destroyed. 28464_ 7B-R9G(j) suffers critical hit (Burn). 28464_ Slug penetrates 03FSN-D. 28464_ 03FSN-D destroyed. 28465_ N-04 Retriever collects Unknown Treads. 28466_ Slug penetrates Executioner. 28466_ Executioner suffers critical hit (Destroy). 28466_ Destroyed Prototype Device. 28466_ Slug penetrates L-61 Swordsman. 28466_ L-61 Swordsman suffers critical hit (Destroy). Map ----- +----------------------------------------------------+ | !![ #" ^ "#### ?# % %%%%% % """""""""" | | "" "!*!# " ^ " # ## % & % %% %""""""""" | | " ""% #" " # % # %%% %% % """"""""" | | =!==% # " " %=% #=%% %%% % % """"""""" | | [%%%!% " % %"& !*#= %%%%%% % % % """"""""" | | =[=!!%=%%% %% & =# n %% !=[%% %""""""""" | | !!%![*"%% % %[ %[==#%% %%|%[%%%* " """"""""" | | %!!!=!"%% %%%%#%&%=%*%!!%%% %% """""""" | | [[%%% % %%% %%% %%%%%%%%%% % !%%m[% % %"""""""" | | %%*[!%%%%% %% % % %%%%%%%%%%%% =%%*%[%%% """""""" | | %=%= %%%%%%% %%%%%%%b%%%%%%%%%!%%%=*%%""""""" | | ![%[""" %=%% %%%%%#E%%%%=%%%% %!=!% %%"""""" | | ! = % %= & [%% %#%%%%%%%%%%%%%%%! """"" | | # #%! % ! !#=%Ahl&%=%%%%%%%% % %"""" | | ####"%" % % ! #%%%%%%/&%%%%%%%[%%%%% """ | | ?##" * %* %% ! #!%=*%%%%%%!%%%%=%%%%%%%"" | | ## #%[%*!%! = # % #!%*%%%%%%%%%%%%%%%%%%%%%% | | ##[!% &%%&! % #%" # #!!=!=%n%%%%%%%%%%%%%%%%%% | | [! %%%&"" ### # #=[[!!% %%%%%%%%% %%%%%%%% | | !=% %% =%%*# "%# #/!%= !=%A %n%%%!j!% %%% % | | =%% %%"! " = !!# " # ##*! %[%%%%%%%s%%%%%% | | =%!!% %= =%=%#" ### # " [=%!=%%*ss%%%%% | | = !%! "& [ # # # % =%[ %% % %%% | | "!!!#* " ### [% % ! % | | " =%[ " " ### " " %" | | # !#! " " ###@ % " % | | #### # "" " ### " ! %% | | # # "## ##### " % | | " ##"#"""%#"## ##### "" ! | | "" # % % ##??# " " | | "" # %###"""## ##??# " " | | "" " ######## % ##??# "" " | | "" # " + ##??######## ################ | | # # ########?????????####??????????????? | | ?# # ########???????????????????????????? | | ?# + ##?????????????????????????????????? | | #### # ##?????????????????????????????????? | | #### # ##?????????????????????????????????? | | #### #########?????????????????????????????????? | | #### %"??????##?????????????????????????????????? | | # "??????##?????????????????????????????????? | | # %"??????##?????????????????????????????????? | | " + "??????##?????????????????????????????????? | | " # #??????##?????????????????????????????????? | | # * #??????##?########????????????????????????? | | ?#!% #########?########????????????????????????? | | #### = #########?##????#####?????????????????????? | | #### =/######????##????#####?????????????????????? | | ??##%=%#"""########???????##?????????????????????? | | ??## %!#"T"########???????##?????????????????????? | +----------------------------------------------------+ Best States ------------- Heat Dissipation 113 Energy Generation 45 Energy Capacity 600 Matter Stores 300 Matter Capacity 300 Sight Range 23 Robot Scan Range 16 Terrain Scan Range 20 Terrain Scan Density 10 Power Amplification 30 Base Temperature (-) 150 Armor Coverage 1600 Resistance: KI 20 Resistance: TH 25 Phase Shifting 10 Evasion (%) 81 Targeting Accuracy 36 Target Analysis 11 Core Analysis 12 Recoil Reduction 6 Salvage Targeting 4 Offensive Hacking 36 Defensive Hacking 12 Item Schematics ----------------- None Robot Schematics ------------------ None Fabricated ------------ Adv. Plasma Cannon | x2 | -6/Factory | Preloaded Repaired ---------- Nothing Studied --------- None Alien Tech Used ----------------- Integrated Dissipator Transdimensional Reconstructor Dimensional Node Initializer Sigix Broadsword Core Reset Matrix Subatomic Replicator Supercharged TR Achievements -------------- Dominance Asserted Challenges ------------ None Game ------ Seed DamperProcessingShovel Manual? 0 Play Time 04:18:57 Cumulative 338.1 hours Start 2026.09.05 @ 14:35:10 End 2026.09.05 @ 21:57:54 Sessions 5 Manual Loads 0 Difficulty Rogue Special Mode None Game No. 312 Rogue 258 Adventurer 54 Explorer 0 Win Type - Total 16 Types 11/1/1/1/0/0/0/1/0/1 Lore% 80 Gallery% 69 Achievement% 64 Wizard Run 0 Options --------- Layout 1 ASCII 0 Keyboard 0 Movement Mouse Keybinds 1 Fullscreen 2 Font 32/Tamsyn Map View 50x35 Zoom Use 0% Tactical HUD 1 Map Filters NONE Filters NONE Steam 1 RUN: e39b5a28-fda5-4170-998f-d93aa45c27d3